lending/lending_fUSD_20250318
["ID","MTS","AMOUNT","RATE_DAILY","PERIOD"]
[356375397,1742339614461,-1912.43,0.00041643,12]
[356375398,1742339614471,-867.89,0.00041643,12]
[356375399,1742339614480,-655.9,0.00041643,12]
[356375400,1742339614490,-3492.09,0.00041643,12]
[356375401,1742339614500,-8347.58,0.00041643,12]
[356375402,1742339614510,-982.97,0.00041643,12]
[356375403,1742339614519,-793.27,0.00041643,12]
[356375404,1742339614530,-2617.2,0.00041643,12]
[356375405,1742339614540,-193.60630016,0.00041643,12]
[356375406,1742339614550,-2613.79,0.00041643,12]
[356375407,1742339614561,-674.83,0.00041643,12]
[356375408,1742339614571,-1198.65,0.00041643,12]
[356375409,1742339614580,-1104.92,0.00041643,12]
[356375410,1742339614590,-1351.56,0.00041643,12]
[356375411,1742339614600,-573.24,0.00041643,12]
[356375412,1742339614610,-1155.96,0.00041643,12]
[356375413,1742339614620,-592.77,0.00041643,12]
[356375414,1742339614630,-819.5,0.00041643,12]
[356375415,1742339614640,-733.05,0.00041643,12]
[356375416,1742339614650,-881.57,0.00041643,12]
[356375417,1742339614661,-566.73,0.00041643,12]
[356375418,1742339614671,-678.37,0.00041643,12]
[356375419,1742339614682,-1747.47,0.00041643,12]
[356375420,1742339614693,-779.59,0.00041643,12]
[356375421,1742339614703,-700.61,0.00041643,12]
[356375422,1742339614713,-6201.97,0.00041643,12]
[356375423,1742339614723,-2724.32,0.00041643,12]
[356375424,1742339614733,-673.71,0.00041643,12]
[356375425,1742339614743,-634.03,0.00041643,12]
[356375426,1742339614753,-1388.66,0.00041643,12]
[356375427,1742339614763,-1201.66,0.00041643,12]
[356375428,1742339614773,-789.17,0.00041643,12]
[356375429,1742339614783,-765.41,0.00041643,12]
[356375430,1742339614792,-637.48,0.00041643,12]
[356375431,1742339614803,-1408.89,0.00041643,12]
[356375432,1742339614817,-1079.25,0.00041643,12]
[356375433,1742339614827,-500.0,0.00041643,12]
[356375434,1742339614838,-629.47,0.00041643,12]
[356375435,1742339614850,-2483.39,0.00041643,12]
[356375436,1742339614860,-818.98,0.00041643,12]
[356375437,1742339614870,-8678.86,0.00041643,12]
[356375438,1742339614880,-338.67997583,0.00041643,12]
[356375439,1742339614891,-1387.5,0.00041643,12]
[356375440,1742339614901,-852.66,0.00041643,12]
[356375441,1742339614911,-609.81,0.00041643,12]
[356375442,1742339614921,-1940.56,0.00041643,12]
[356375443,1742339614931,-982.22,0.00041643,12]
[356375444,1742339614941,-5124.49,0.00041643,12]
[356375445,1742339614951,-848.28,0.00041643,12]
[356375446,1742339614961,-555.67,0.00041643,12]
[356375447,1742339614972,-610.21,0.00041643,12]
[356375448,1742339614983,-797.64,0.00041643,12]
[356375449,1742339614994,-1404.74,0.00041643,12]
[356375450,1742339615004,-570.46,0.00041643,12]
[356375451,1742339615014,-626.53,0.00041643,12]
[356375452,1742339615024,-1037.27,0.00041643,12]
[356375453,1742339615034,-1010.64,0.00041643,12]
[356375454,1742339615044,-2051.57,0.00041643,12]
[356375455,1742339615055,-517.9,0.00041643,12]
[356375456,1742339615064,-698.57,0.00041643,12]
[356375457,1742339615075,-810.35,0.00041643,12]
[356375458,1742339615085,-753.9,0.00041643,12]
[356375459,1742339615095,-976.72,0.00041643,12]
[356375460,1742339615105,-816.08,0.00041643,12]
[356375461,1742339615115,-1763.99,0.00041643,12]
[356375462,1742339615125,-807.5,0.00041643,12]
[356375463,1742339615135,-974.77,0.00041643,12]
[356375464,1742339615145,-1119.31,0.00041643,12]
[356375465,1742339615155,-764.52,0.00041643,12]
[356375466,1742339615165,-1305.41,0.00041643,12]
[356375467,1742339615175,-1054.67,0.00041643,12]
[356375468,1742339615185,-697.71,0.00041643,12]
[356375469,1742339615195,-784.0,0.00041643,12]
[356375470,1742339615205,-636.48,0.00041643,12]
[356375471,1742339615215,-871.68,0.00041643,12]
[356375472,1742339615225,-1505.16,0.00041643,12]
[356375473,1742339615235,-3544.19,0.00041643,12]
[356375474,1742339615245,-1054.74,0.00041643,12]
[356375475,1742339615255,-3375.24,0.00041643,12]
[356375476,1742339615265,-1877.16,0.00041643,12]
[356375477,1742339615274,-1691.18,0.00041643,12]
[356375478,1742339615284,-42495.51669928,0.00041643,30]
[356375479,1742339615294,-42495.51669928,0.00041643,30]
[356375480,1742339615304,-42495.51669928,0.00041643,30]
[356375481,1742339615314,-42495.51669928,0.00041643,30]
[356375482,1742339615324,-1657.99266,0.00041688,30]
[356375483,1742339615335,-857.44,0.00041694,2]
[356375484,1742339615345,-151.031817,0.00041798,120]
[356375485,1742339615355,-15607.60033049,0.00041888,2]
[356375486,1742339615365,-1657.99266,0.00041888,30]
[356375487,1742339615375,-500.0,0.00041917,120]
[356375488,1742339615386,-588.39,0.00041917,120]
[356375489,1742339615396,-500.0,0.00041917,120]
[356375490,1742339615405,-500.0,0.00041917,120]
[356375491,1742339615416,-500.0,0.00041917,2]
[356375492,1742339615426,-500.0,0.00041917,120]
[356375493,1742339615436,-500.0,0.00041917,2]
[356375494,1742339615446,-171.87914249,0.00041917,120]
[356375495,1742339615456,-695.53,0.00041917,120]
[356375496,1742339615466,-500.0,0.00041917,120]
[356375497,1742339615477,-500.0,0.00041917,120]
[356375498,1742339615487,-500.0,0.00041917,120]
[356375499,1742339615497,-500.0,0.00041917,120]
[356375500,1742339615507,-500.0,0.00041917,120]
[356375501,1742339615517,-500.0,0.00041917,120]
[356375502,1742339615527,-500.0,0.00041917,120]
[356375503,1742339615538,-500.0,0.00041917,120]
[356375504,1742339615548,-500.0,0.00041917,120]
[356375505,1742339615558,-500.0,0.00041917,120]
[356375506,1742339615569,-500.0,0.00041917,120]
[356375507,1742339615579,-500.0,0.00041917,120]
[356375508,1742339615589,-500.0,0.00041917,120]
[356375509,1742339615599,-599.27,0.00041917,120]
[356375510,1742339615609,-500.0,0.00041917,120]
[356375511,1742339615912,-500.0,0.00041917,120]
[356375512,1742339615922,-675.48,0.00041917,120]
[356375513,1742339615931,-500.0,0.00041917,120]
[356375514,1742339615940,-2951.2,0.00041917,120]
[356375515,1742339615950,-3587.64,0.00041917,120]
[356375516,1742339615959,-500.0,0.00041917,120]
[356375517,1742339615969,-500.0,0.00041917,120]
[356375518,1742339615979,-500.0,0.00041917,120]
[356375519,1742339615988,-500.0,0.00041917,120]
[356375520,1742339615998,-731.85,0.00041917,120]
[356375521,1742339616007,-500.0,0.00041917,120]
[356375522,1742339616017,-500.0,0.00041917,120]
[356375523,1742339616027,-500.0,0.00041917,120]
[356375524,1742339616037,-1000.25,0.00041917,120]
[356375525,1742339616046,-500.0,0.00041917,30]
[356375526,1742339616055,-614.62522459,0.00041917,120]
[356375527,1742339616065,-500.0,0.00041917,120]
[356375528,1742339616074,-500.0,0.00041917,120]
[356375529,1742339616084,-500.0,0.00041917,120]
[356375530,1742339616093,-500.0,0.00041917,120]
[356375531,1742339616103,-587.79,0.00041917,120]
[356375532,1742339616112,-500.0,0.00041917,120]
[356375533,1742339616121,-500.0,0.00041917,120]
[356375534,1742339616130,-500.0,0.00041917,120]
[356375535,1742339616140,-647.79,0.00041917,120]
[356375536,1742339616149,-500.0,0.00041917,120]
[356375537,1742339616159,-500.0,0.00041917,120]
[356375538,1742339616168,-500.0,0.00041917,120]
[356375539,1742339616178,-500.0,0.00041917,120]
[356375540,1742339616187,-500.0,0.00041917,120]
[356375541,1742339616196,-500.0,0.00041917,120]
[356375542,1742339616206,-415.57579778,0.00041917,120]
[356375543,1742339616215,-525.06071201,0.00041917,120]
[356375544,1742339616225,-500.0,0.00041917,120]
[356375545,1742339616234,-500.0,0.00041917,120]
[356375546,1742339616245,-265.70095854,0.00041917,120]
[356375547,1742339616254,-245.85427769,0.00041917,120]
[356375548,1742339616263,-500.0,0.00041917,120]
[356375549,1742339616273,-500.0,0.00041917,120]
[356375550,1742339616282,-500.0,0.00041917,120]
[356375551,1742339616291,-325.1539683,0.00041917,120]
[356375552,1742339616301,-500.0,0.00041917,120]
[356375553,1742339616310,-532.240889,0.00041917,120]
[356375554,1742339616319,-500.0,0.00041917,120]
[356375555,1742339616329,-500.0,0.00041917,120]
[356375556,1742339616338,-500.0,0.00041917,120]
[356375557,1742339616347,-500.0,0.00041917,120]
[356375558,1742339616357,-500.0,0.00041917,120]
[356375559,1742339616366,-500.0,0.00041917,120]
[356375560,1742339616376,-500.0,0.00041917,120]
[356375561,1742339616386,-500.0,0.00041917,120]
[356375562,1742339616395,-500.0,0.00041917,120]
[356375563,1742339616404,-500.0,0.00041917,120]
[356375564,1742339616414,-500.0,0.00041917,120]
[356375565,1742339616423,-500.0,0.00041917,120]
[356375566,1742339616433,-500.0,0.00041917,120]
[356375567,1742339616443,-500.0,0.00041917,2]
[356375568,1742339616452,-500.0,0.00041917,120]
[356375569,1742339616461,-4954.91,0.00041917,120]
[356375570,1742339616471,-500.0,0.00041917,120]
[356375571,1742339616480,-515.86,0.00041917,120]
[356375572,1742339616490,-1142.14,0.00041917,120]
[356375573,1742339616499,-500.0,0.00041917,120]
[356375574,1742339616509,-1372.58,0.00041917,120]
[356375575,1742339616518,-500.0,0.00041917,120]
[356375576,1742339616528,-2157.42,0.00041917,120]
[356375577,1742339616537,-500.0,0.00041917,120]
[356375578,1742339616547,-1414.54,0.00041917,120]
[356375579,1742339616556,-1247.27,0.00041917,120]
[356375580,1742339616565,-571.9,0.00041917,120]
[356375581,1742339616575,-1731.09,0.00041917,120]
[356375582,1742339616584,-500.0,0.00041917,120]
[356375583,1742339616594,-690.54,0.00041917,120]
[356375584,1742339616603,-1601.13,0.00041917,120]
[356375585,1742339616612,-647.8,0.00041917,120]
[356375586,1742339616621,-619.12,0.00041917,120]
[356375587,1742339616630,-500.0,0.00041917,120]
[356375588,1742339616639,-500.0,0.00041917,120]
[356375589,1742339616648,-657.42,0.00041917,120]
[356375590,1742339616658,-500.0,0.00041917,120]
[356375591,1742339616667,-1197.86,0.00041917,120]
[356375592,1742339616676,-500.0,0.00041917,120]
[356375593,1742339616686,-1514.57,0.00041917,120]
[356375594,1742339616695,-500.0,0.00041917,120]
[356375595,1742339616704,-345.93163005,0.00041917,120]
[356375596,1742339616713,-500.0,0.00041917,120]
[356375597,1742339616724,-500.0,0.00041917,120]
[356375598,1742339616734,-500.0,0.00041917,120]
[356375599,1742339616744,-500.0,0.00041917,120]
[356375600,1742339616754,-500.0,0.00041917,30]
[356375601,1742339616764,-500.0,0.00041917,120]
[356375602,1742339616773,-500.0,0.00041917,120]
[356375603,1742339616783,-500.0,0.00041917,120]
[356375604,1742339616792,-500.0,0.00041917,120]
[356375605,1742339616802,-500.0,0.00041917,120]
[356375606,1742339616812,-500.0,0.00041917,120]
[356375607,1742339616823,-500.0,0.00041917,120]
[356375608,1742339616833,-545.7082781,0.00041917,120]
[356375609,1742339616842,-514.50514999,0.00041917,120]
[356375610,1742339616851,-511.85219099,0.00041917,120]
[356375611,1742339616862,-507.03702079,0.00041917,120]
[356375612,1742339616871,-548.95101939,0.00041917,120]
[356375613,1742339616880,-516.28010419,0.00041917,120]
[356375614,1742339616890,-526.69736921,0.00041917,120]
[356375615,1742339616900,-500.0,0.00041917,120]
[356375616,1742339616910,-500.0,0.00041917,120]
[356375617,1742339616920,-500.0,0.00041917,120]
[356375618,1742339616930,-500.0,0.00041917,120]
[356375619,1742339616940,-500.0,0.00041917,120]
[356375620,1742339616951,-500.0,0.00041917,120]
[356375621,1742339616963,-500.0,0.00041917,120]
[356375622,1742339616972,-500.0,0.00041917,120]
[356375623,1742339616982,-500.0,0.00041917,120]
[356375624,1742339616994,-500.0,0.00041917,120]
[356375625,1742339617004,-500.0,0.00041917,120]
[356375626,1742339617013,-500.0,0.00041917,120]
[356375627,1742339617023,-500.0,0.00041917,120]
[356375628,1742339617032,-500.0,0.00041917,120]
[356375629,1742339617041,-500.0,0.00041917,120]
[356375630,1742339617051,-500.0,0.00041917,120]
[356375631,1742339617060,-500.0,0.00041917,120]
[356375632,1742339617069,-500.0,0.00041917,120]
[356375633,1742339617078,-500.0,0.00041917,120]
[356375634,1742339617088,-1264.5,0.00041917,120]
[356375635,1742339617097,-500.0,0.00041917,2]
[356375636,1742339617107,-500.0,0.00041917,120]
[356375637,1742339617117,-500.0,0.00041917,120]
[356375638,1742339617126,-500.0,0.00041917,120]
[356375639,1742339617136,-500.0,0.00041917,120]
[356375640,1742339617145,-500.0,0.00041917,120]
[356375641,1742339617154,-677.1,0.00041917,120]
[356375642,1742339617164,-538.01,0.00041917,120]
[356375643,1742339617173,-1026.81,0.00041917,120]
[356375644,1742339617182,-500.0,0.00041917,120]
[356375645,1742339617191,-1290.9,0.00041917,120]
[356375646,1742339617200,-661.16965029,0.00041917,12]
[356375647,1742339617210,-1089.34284939,0.00041917,12]
[356375648,1742339617219,-1280.36919097,0.00041917,12]
[356375649,1742339617228,-705.73241493,0.00041917,12]
[356375650,1742339617237,-840.05701963,0.00041917,12]
[356375651,1742339617247,-586.72770049,0.00041917,12]
[356375652,1742339617256,-659.95798538,0.00041917,12]
[356375653,1742339617265,-781.592516,0.00041917,12]
[356375654,1742339617275,-578.5866889,0.00041917,12]
[356375655,1742339617284,-716.46167808,0.00041917,12]
[356375656,1742339617293,-875.84207505,0.00041917,12]
[356375657,1742339617302,-1293.3215932,0.00041917,12]
[356375658,1742339617312,-554.73506766,0.00041917,12]
[356375659,1742339617323,-887.43728457,0.00041917,12]
[356375660,1742339617333,-933.43903469,0.00041917,12]
[356375661,1742339617344,-645.47269592,0.00041917,12]
[356375662,1742339617354,-1270.42017725,0.00041917,12]
[356375663,1742339617364,-635.66674093,0.00041917,12]
[356375664,1742339617373,-546.6593193,0.00041917,12]
[356375665,1742339617383,-1007.73982363,0.00041917,12]
[356375666,1742339617392,-616.10247335,0.00041917,12]
[356375667,1742339617402,-686.85446451,0.00041917,12]
[356375668,1742339617411,-531.50457273,0.00041917,12]
[356375669,1742339617421,-601.54397453,0.00041917,12]
[356375670,1742339617431,-567.73470065,0.00041917,12]
[356375671,1742339617440,-963.48721875,0.00041917,12]
[356375672,1742339617450,-815.69353241,0.00041917,12]
[356375673,1742339617460,-500.53938134,0.00041917,12]
[356375674,1742339617469,-546.90794647,0.00041917,12]
[356375675,1742339617480,-599.50445402,0.00041917,12]
[356375676,1742339617489,-729.8168555,0.00041917,12]
[356375677,1742339617499,-922.448976,0.00041917,12]
[356375678,1742339617509,-1163.3675409,0.00041917,12]
[356375679,1742339617519,-875.97893137,0.00041917,30]
[356375680,1742339617528,-750.8840142,0.00041917,12]
[356375681,1742339617538,-1410.17348616,0.00041917,12]
[356375682,1742339617548,-510.23853903,0.00041917,12]
[356375683,1742339617558,-542.12196228,0.00041917,12]
[356375684,1742339617568,-2100.37,0.00041917,12]
[356375685,1742339617577,-819.92428001,0.00041917,12]
[356375686,1742339617587,-868.97129267,0.00041917,12]
[356375687,1742339617597,-833.19030962,0.00041917,12]
[356375688,1742339617606,-1487.7163507,0.00041917,12]
[356375689,1742339617616,-1565.380344,0.00041917,12]
[356375690,1742339617626,-156.823057,0.00041917,12]
[356375691,1742339617636,-729.06974252,0.00041917,12]
[356375692,1742339617646,-915.54427522,0.00041917,12]
[356375693,1742339617656,-523.29884553,0.00041917,12]
[356375694,1742339617665,-415.53198,0.00041917,12]
[356375695,1742339617675,-571.54660413,0.00041917,12]
[356375696,1742339617684,-547.07667467,0.00041917,12]
[356375697,1742339617693,-1579.021524,0.00041917,12]
[356375698,1742339617703,-540.1605236,0.00041917,12]
[356375699,1742339617713,-507.22432206,0.00041917,12]
[356375700,1742339617724,-1407.05779179,0.00041917,12]
[356375701,1742339617733,-1265.92878172,0.00041917,12]
[356375702,1742339617743,-584.13977947,0.00041917,12]
[356375703,1742339617752,-819.63576746,0.00041917,12]
[356375704,1742339617762,-1112.90010207,0.00041917,12]
[356375705,1742339617772,-849.1688912,0.00041917,12]
[356375706,1742339617782,-610.29330607,0.00041917,12]
[356375707,1742339617792,-331.99971758,0.00041917,12]
[356375708,1742339617802,-966.94447438,0.00041917,12]
[356375709,1742339617814,-562.22857609,0.00041917,12]
[356375710,1742339617824,-566.00859624,0.00041917,12]
[356375711,1742339617833,-897.32879401,0.00041917,12]
[356375712,1742339617842,-588.23990319,0.00041917,12]
[356375713,1742339617853,-539.40245069,0.00041917,12]
[356375714,1742339617863,-956.50334411,0.00041917,12]
[356375715,1742339617872,-2686.88807063,0.00041917,12]
[356375716,1742339617883,-914.60572186,0.00041917,12]
[356375717,1742339617895,-1521.92173813,0.00041917,7]
[356375718,1742339617905,-537.85334516,0.00041917,12]
[356375719,1742339617914,-1313.27,0.00041917,12]
[356375720,1742339617924,-894.24266894,0.00041917,12]
[356375721,1742339617934,-523.79953478,0.00041917,12]
[356375722,1742339617943,-523.96107938,0.00041917,12]
[356375723,1742339617953,-845.79293653,0.00041917,12]
[356375724,1742339617963,-1156.12915781,0.00041917,12]
[356375725,1742339617973,-510.38651292,0.00041917,12]
[356375726,1742339617982,-656.01614584,0.00041917,12]
[356375727,1742339617993,-1175.74237928,0.00041917,12]
[356375728,1742339618002,-675.57048981,0.00041917,12]
[356375729,1742339618012,-584.33002476,0.00041917,12]
[356375730,1742339618022,-1360.82571695,0.00041917,12]
[356375731,1742339618031,-535.56140265,0.00041917,12]
[356375732,1742339618040,-940.88144132,0.00041917,12]
[356375733,1742339618050,-661.8,0.00041917,12]
[356375734,1742339618059,-628.74417131,0.00041917,12]
[356375735,1742339618068,-872.4115616,0.00041917,12]
[356375736,1742339618077,-672.11856489,0.00041917,12]
[356375737,1742339618087,-589.35,0.00041917,12]
[356375738,1742339618096,-2111.67174644,0.00041917,12]
[356375739,1742339618106,-1118.44606168,0.00041917,12]
[356375740,1742339618115,-952.62113744,0.00041917,12]
[356375741,1742339618125,-1141.77378573,0.00041917,12]
[356375742,1742339618134,-510.01885326,0.00041917,12]
[356375743,1742339618144,-786.41581572,0.00041917,12]
[356375744,1742339618153,-885.94934723,0.00041917,12]
[356375745,1742339618163,-853.19886042,0.00041917,12]
[356375746,1742339618172,-930.22227546,0.00041917,12]
[356375747,1742339618182,-554.71,0.00041917,12]
[356375748,1742339618191,-535.13685933,0.00041917,12]
[356375749,1742339618201,-1096.18057626,0.00041917,12]
[356375750,1742339618322,-669.42059646,0.00041917,12]
[356375751,1742339618332,-2116.69393213,0.00041917,12]
[356375752,1742339618341,-1273.4031414,0.00041917,12]
[356375753,1742339618350,-662.09823087,0.00041917,12]
[356375754,1742339618358,-824.67015111,0.00041917,12]
[356375755,1742339618367,-1001.66246888,0.00041917,12]
[356375756,1742339618375,-865.26259913,0.00041917,12]
[356375757,1742339618385,-569.73705698,0.00041917,12]
[356375758,1742339618394,-850.3301648,0.00041917,12]
[356375759,1742339618404,-2025.54299205,0.00041917,12]
[356375760,1742339618413,-1035.13023713,0.00041917,12]
[356375761,1742339618422,-1125.61691744,0.00041917,12]
[356375762,1742339618431,-736.28,0.00041917,12]
[356375763,1742339618440,-483.90832508,0.00041917,12]
[356375764,1742339618450,-705.91100648,0.00041917,12]
[356375765,1742339618459,-1168.98372429,0.00041917,12]
[356375766,1742339618469,-909.60015103,0.00041917,12]
[356375767,1742339618478,-1214.68898916,0.00041917,12]
[356375768,1742339618487,-750.74710893,0.00041917,12]
[356375769,1742339618497,-999.66582001,0.00041917,12]
[356375770,1742339618506,-913.19426656,0.00041917,12]
[356375771,1742339618516,-628.88016581,0.00041917,12]
[356375772,1742339618525,-1022.48,0.00041917,12]
[356375773,1742339618534,-664.6525925,0.00041917,12]
[356375774,1742339618544,-970.36,0.00041917,12]
[356375775,1742339618553,-605.69919898,0.00041917,12]
[356375776,1742339618562,-1253.58994739,0.00041917,12]
[356375777,1742339618571,-1388.95275395,0.00041917,12]
[356375778,1742339618580,-1024.44563349,0.00041917,12]
[356375779,1742339618589,-603.32839099,0.00041917,12]
[356375780,1742339618599,-747.41390473,0.00041917,12]
[356375781,1742339618608,-1242.05177769,0.00041917,12]
[356375782,1742339618617,-843.27295817,0.00041917,12]
[356375783,1742339618627,-535.22637525,0.00041917,12]
[356375784,1742339618636,-533.12320338,0.00041917,12]
[356375785,1742339618646,-536.72745773,0.00041917,7]
[356375786,1742339618655,-864.4147273,0.00041917,12]
[356375787,1742339618664,-1425.8150271,0.00041917,12]
[356375788,1742339618673,-838.42,0.00041917,12]
[356375789,1742339618682,-1035.976706,0.00041917,12]
[356375790,1742339618691,-1120.08541759,0.00041917,12]
[356375791,1742339618700,-940.77982631,0.00041917,12]
[356375792,1742339618710,-757.24804398,0.00041917,12]
[356375793,1742339618719,-1602.15471322,0.00041917,12]
[356375794,1742339618728,-1002.86117293,0.00041917,12]
[356375795,1742339618738,-1198.61215913,0.00041917,12]
[356375796,1742339618749,-1331.20097556,0.00041917,12]
[356375797,1742339618758,-650.02256818,0.00041917,12]
[356375798,1742339618767,-999.29039306,0.00041917,12]
[356375799,1742339618776,-2599.01153487,0.00041917,12]
[356375800,1742339618785,-3644.3634175,0.00041917,12]
[356375801,1742339618795,-1388.04126422,0.00041917,12]
[356375802,1742339618804,-843.24326811,0.00041917,12]
[356375803,1742339618816,-2465.73522162,0.00041917,12]
[356375804,1742339618826,-975.08,0.00041917,12]
[356375805,1742339618835,-609.85298983,0.00041917,12]
[356375806,1742339618844,-974.8194861,0.00041917,12]
[356375807,1742339618854,-1079.00049987,0.00041917,12]
[356375808,1742339618863,-2236.87087159,0.00041917,12]
[356375809,1742339618872,-1919.32903074,0.00041917,12]
[356375810,1742339618881,-2066.04021332,0.00041917,12]
[356375811,1742339618891,-1744.74,0.00041917,12]
[356375812,1742339618900,-924.0949365,0.00041917,12]
[356375813,1742339618910,-965.92053757,0.00041917,12]
[356375814,1742339618919,-2170.21838288,0.00041917,7]
[356375815,1742339618928,-630.54160076,0.00041917,12]
[356375816,1742339618939,-4236.94104524,0.00041917,12]
[356375817,1742339618948,-701.58957722,0.00041917,12]
[356375818,1742339618956,-2364.63097987,0.00041917,12]
[356375819,1742339618966,-2071.34829168,0.00041917,12]
[356375820,1742339618975,-940.28816855,0.00041917,12]
[356375821,1742339618985,-833.73029032,0.00041917,12]
[356375822,1742339618995,-1084.50534152,0.00041917,12]
[356375823,1742339619003,-1166.43758206,0.00041917,12]
[356375824,1742339619012,-1018.3981054,0.00041917,12]
[356375825,1742339619021,-3791.10582927,0.00041917,12]
[356375826,1742339619030,-591.26779884,0.00041917,12]
[356375827,1742339619039,-722.92954551,0.00041917,12]
[356375828,1742339619049,-627.49095396,0.00041917,12]
[356375829,1742339619058,-434.08880144,0.00041917,12]
[356375830,1742339619067,-2218.56762501,0.00041917,12]
[356375831,1742339619076,-2207.81103924,0.00041917,12]
[356375832,1742339619085,-1038.34196562,0.00041917,12]
[356375833,1742339619095,-7287.1444952,0.00041917,2]
[356375834,1742339619104,-4093.15985054,0.00041917,12]
[356375835,1742339619113,-662.54591473,0.00041917,12]
[356375836,1742339619122,-617.7553925,0.00041917,12]
[356375837,1742339619131,-884.42943333,0.00041917,12]
[356375838,1742339619140,-568.44091185,0.00041917,12]
[356375839,1742339619149,-2314.16161887,0.00041917,12]
[356375840,1742339619158,-1249.76478425,0.00041917,12]
[356375841,1742339619167,-605.94498416,0.00041917,12]
[356375842,1742339619176,-591.00761636,0.00041917,12]
[356375843,1742339619185,-4019.2746441,0.00041917,12]
[356375844,1742339619195,-845.4544574,0.00041917,12]
[356375845,1742339619204,-1263.79450152,0.00041917,12]
[356375846,1742339619214,-722.69860048,0.00041917,12]
[356375847,1742339619223,-582.2558197,0.00041917,12]
[356375848,1742339619232,-1474.07472601,0.00041917,12]
[356375849,1742339619241,-1361.88255747,0.00041917,12]
[356375850,1742339619251,-841.16591351,0.00041917,12]
[356375851,1742339619260,-1912.79780422,0.00041917,12]
[356375852,1742339619270,-714.0764163,0.00041917,12]
[356375853,1742339619279,-714.52050662,0.00041917,12]
[356375854,1742339619288,-635.65963396,0.00041917,12]
[356375855,1742339619298,-1883.15417908,0.00041917,12]
[356375856,1742339619307,-5988.83689244,0.00041917,12]
[356375857,1742339619316,-2181.05338795,0.00041917,10]
[356375858,1742339619325,-1955.8376297,0.00041917,12]
[356375859,1742339619334,-6906.57435619,0.00041917,12]
[356375860,1742339619343,-2131.43447354,0.00041917,12]
[356375861,1742339619352,-713.5026812,0.00041917,12]
[356375862,1742339619360,-1357.37653066,0.00041917,12]
[356375863,1742339619370,-758.98727123,0.00041917,12]
[356375864,1742339619380,-517.06578793,0.00041917,12]
[356375865,1742339619389,-1496.93783165,0.00041917,12]
[356375866,1742339619399,-1214.67236875,0.00041917,12]
[356375867,1742339619407,-2414.44841754,0.00041917,12]
[356375868,1742339619417,-1376.03504639,0.00041917,12]
[356375869,1742339619426,-1974.97999061,0.00041917,12]
[356375870,1742339619435,-925.7833538,0.00041917,12]
[356375871,1742339619444,-713.1275622,0.00041917,12]
[356375872,1742339619454,-1067.91822996,0.00041917,12]
[356375873,1742339619463,-839.23875055,0.00041917,12]
[356375874,1742339619472,-767.94958825,0.00041917,12]
[356375875,1742339619481,-1426.53985829,0.00041917,12]
[356375876,1742339619490,-1432.89950227,0.00041917,12]
[356375877,1742339619499,-780.91470504,0.00041917,12]
[356375878,1742339619509,-1216.8,0.00041917,12]
[356375879,1742339619518,-1487.83670985,0.00041917,12]
[356375880,1742339619528,-1708.91040623,0.00041917,12]
[356375881,1742339619537,-913.28924381,0.00041917,12]
[356375882,1742339619546,-1018.14806199,0.00041917,12]
[356375883,1742339619555,-1929.25119374,0.00041917,12]
[356375884,1742339619563,-2290.53842638,0.00041917,12]
[356375885,1742339619572,-902.3969375,0.00041917,12]
[356375886,1742339619581,-1430.42476789,0.00041917,12]
[356375887,1742339619590,-1072.84480096,0.00041917,12]
[356375888,1742339619599,-674.24645814,0.00041917,12]
[356375889,1742339619608,-1638.71434083,0.00041917,12]
[356375890,1742339619617,-1760.24877097,0.00041917,12]
[356375891,1742339619626,-1045.12041437,0.00041917,12]
[356375892,1742339619635,-682.79661538,0.00041917,12]
[356375893,1742339619644,-794.23800501,0.00041917,12]
[356375894,1742339619654,-158.55125334,0.00041917,12]
[356375895,1742339619663,-1729.72403828,0.00041917,12]
[356375896,1742339619672,-1432.44503756,0.00041917,12]